Cogmind - Beta 16 @@@ ROGUE MODE // 2025.11.17 @ 00:48:35 Player: guru-sr Result: Destroyed by S-43 Plague with Heavy Machine Gun Performance ------------- Evolutions (7) 3500 Regions Visited (22) 4400 Robots Destroyed (307) 1535 Value Destroyed (16520) 16520 Prototype IDs (12) 240 Alien Tech Used (0) 0 Bonus (12245) 12245 TOTAL SCORE: 38440 Bonus ------- High Alert Combat Kills 3713 Follower Combat Kills 2860 Entered Garrisons 1400 Used RIF Installer 4500 Friendly Fire -228 Cogmind --------- Core Integrity 0/1300 Matter 236/300 Energy 100/100 System Corruption 6% Temperature Cool (0) Movement Core (50) Location -3/Research Parts ------- > --- POWER (1) -------- (None) > --- PROPULSION (4) --- (None) > --- UTILITY (12) ----- (None) > --- WEAPON (4) ------- (None) > --- INVENTORY (5) ---- Advanced Weapon Cycler Improved Heavy Armor Plating Hacking Suite Coil Gun Peak State ------------ > --- POWER ------------ Light Quantum Reactor > --- PROPULSION ------- Heavy Treads Armored Huge Wheel > --- UTILITY ---------- Advanced Heat Sink Advanced Cooling System High-capacity Storage Unit Enhanced Optical Array Advanced Sensor Array Advanced Signal Interpreter Advanced Targeting Computer Advanced Weapon Cycler Improved Heavy Armor Plating Relay Coupler [NC] Relay Coupler [Grunt] > --- WEAPON ----------- Heavy Beamcaster Phase Gun Cooled Plasma Cannon Advanced Remote Datajack > --- INVENTORY -------- Light Antimatter Reactor Hybrid Antimatter Reactor Advanced Targeting Computer Hardened Medium Armor Plating Improved Heavy Armor Plating Layered Light Armor Plating Layered Light Armor Plating Hacking Suite Hacking Suite Relay Coupler [Brawler] Relay Coupler [Sentry] Relay Coupler [Heavy] Advanced Component Analysis Suite Plasma Rifle Wave Gun Phase Gun Coil Gun Heavy Machine Gun Hardcell Cannon [Rating: 118] Favorites ----------- Power Light Nuclear Core Engine Reinforced Ion Engine Power Core Light Nuclear Core Reactor Reinforced Antimatter Reactor Propulsion Armored Huge Wheel Treads Improved Medium Treads Wheel Armored Huge Wheel Utility High-capacity Storage Unit Device Improved Heat Sink Storage High-capacity Storage Unit Processor Advanced Terrain Scan Processor Hackware Relay Coupler [Grunt] Protection Hardened Medium Armor Plating Weapon Gauss Rifle Energy Gun Cooled Pulse Rifle Energy Cannon Heavy Particle Cannon Ballistic Gun Gauss Rifle Launcher Improved Grenade Launcher Special Weapon Remote Datajack Slashing Weapon Chainsword Build | -11 -10 -10 -10 -9 -8 -8 -8 -8 -7 -7 -6 -6 -6 -6 -5 -5 -5 -5 -4 -4 -4 -3 ------- Run | Yrd Mat Min Exi Min Mat Gar Mat Gar Fac Gar Fac Gar Fac Gar Fac Was Fac Gar Fac Gar Fac Res Slots Evolved 14 | . . . . . 4 . . . 2 . 2 . . . 2 . . . 2 . . 2 Power . | . . . . . . . . . . . . . . . . . . . . . . . Propulsion 2 | . . . . . . . . . 2 . . . . . . . . . . . . . Utility 10 | . . . . . 3 . . . . . 2 . . . 2 . . . 2 . . 1 Weapon 2 | . . . . . 1 . . . . . . . . . . . . . . . . 1 Parts Attached 237 | 7 15 5 1 3 35 8 8 4 14 12 11 22 14 19 1 5 1 8 12 20 5 7 Power 29 | 2 1 2 . . 4 1 . 2 3 . . 2 2 4 . 1 . . 1 2 . 2 Engine 13 | 2 . 1 . . 2 1 . . 3 . . 1 2 1 . . . . . . . . Core 8 | . 1 1 . . 2 . . 2 . . . 1 . 1 . . . . . . . . Reactor 8 | . . . . . . . . . . . . . . 2 . 1 . . 1 2 . 2 Propulsion 30 | 2 3 . . 1 6 2 6 . 1 . 3 3 . . . 1 . . 1 1 . . Treads 21 | 1 1 . . 1 3 1 6 . . . 2 3 . . . 1 . . 1 1 . . Leg . | . . . . . . . . . . . . . . . . . . . . . . . Wheel 9 | 1 2 . . . 3 1 . . 1 . 1 . . . . . . . . . . . Hover . | . . . . . . . . . . . . . . . . . . . . . . . Flight . | . . . . . . . . . . . . . . . . . . . . . . . Utility 118 | 1 6 2 1 . 13 3 1 1 5 10 5 13 9 13 1 2 1 6 8 11 3 3 Device 32 | . 3 2 . . 5 . . 1 1 1 2 2 2 2 . 1 . 3 2 5 . . Storage 6 | 1 3 . 1 . 1 . . . . . . . . . . . . . . . . . Processor 11 | . . . . . 1 . . . 1 1 1 . 1 3 . . . 1 . . 2 . Hackware 43 | . . . . . . . . . 3 7 . 7 4 8 1 1 . 2 4 2 1 3 Protection 26 | . . . . . 6 3 1 . . 1 2 4 2 . . . 1 . 2 4 . . Artifact . | . . . . . . . . . . . . . . . . . . . . . . . Weapon 60 | 2 5 1 . 2 12 2 1 1 5 2 3 4 3 2 . 1 . 2 2 6 2 2 Energy Gun 23 | 1 2 . . 1 3 1 1 . 3 2 . . . 1 . 1 . 1 1 2 2 1 Energy Cannon 6 | . 1 . . . 2 . . . 1 . 1 . 1 . . . . . . . . . Ballistic Gun 17 | 1 1 . . 1 4 . . . . . 1 3 1 1 . . . 1 1 2 . . Ballistic Cannon . | . . . . . . . . . . . . . . . . . . . . . . . Launcher 7 | . . 1 . . 2 1 . . 1 . 1 . . . . . . . . . . 1 Special Weapon 6 | . 1 . . . . . . 1 . . . 1 1 . . . . . . 2 . . Impact Weapon . | . . . . . . . . . . . . . . . . . . . . . . . Slashing Weapon 1 | . . . . . 1 . . . . . . . . . . . . . . . . . Piercing Weapon . | . . . . . . . . . . . . . . . . . . . . . . . Special Melee Weapon . | . . . . . . . . . . . . . . . . . . . . . . . Unidentified Prototypes 10 | . 1 . . . 5 . . . 1 . . . 1 . . . . . . . . 2 Corrupted Parts 4 | . . . . . . . . . 1 2 . . . . . . . . . 1 . . System Corruption 29 | . . . . . . . . . 10 18 . . . . . . . . . 1 . . Parts Lost 46 | . 2 2 . . 5 . . 1 2 2 . 6 1 1 . . 1 . 5 9 1 8 Power 8 | . . 1 . . 1 . . . 1 . . 1 . 1 . . . . 1 1 . 1 Propulsion 9 | . 1 1 . . 2 . . . . . . 1 . . . . . . . 2 . 2 Utility 15 | . 1 . . . 1 . . . . 1 . 1 1 . . . 1 . 3 4 . 2 Weapon 14 | . . . . . 1 . . 1 1 1 . 3 . . . . . . 1 2 1 3 Highest Loss Streak 5 | . 1 1 . . 2 . . 1 1 2 . 2 1 1 . . 1 . 4 5 1 4 To Critical Strikes 1 | . . . . . . . . . . . . . . . . . . . . 1 . . Average Backups 18 | 3 17 19 20 19 18 19 18 18 18 18 18 18 18 18 17 17 17 17 16 16 19 16 Power 1 | . 1 . 1 . . 1 1 1 1 1 1 . 1 1 1 . 1 1 . 1 2 1 Propulsion 1 | 1 5 2 3 1 1 1 2 3 1 1 2 2 1 1 1 1 2 2 2 . . . Utility 9 | . 6 9 10 9 9 11 10 9 9 9 9 11 10 9 9 9 9 7 7 7 10 9 Weapon 5 | . 4 6 6 5 6 5 4 4 5 5 4 3 4 6 5 5 4 5 5 6 6 5 Tool/Special . | . . . . . . . . . . . . . . . . . . . . . . . Unused Backups 73 | 1 10 1 . 3 14 4 2 2 3 4 4 3 . 1 . 2 . 2 1 4 . 12 Power 8 | . . . . . . . . . . 2 1 . . 1 . . . 1 . 2 . 1 Propulsion 7 | 1 4 . . 1 . . . . . . . . . . . 1 . . . . . . Utility 38 | . 2 1 . 2 10 4 2 2 1 1 2 3 . . . . . 1 . 1 . 6 Weapon 19 | . 4 . . . 3 . . . 2 1 1 . . . . 1 . . 1 1 . 5 Tool/Special 1 | . . . . . 1 . . . . . . . . . . . . . . . . . Average Slot Usage (%) 93 | . 95 99 100 99 98 100 100 100 94 83 90 92 92 92 93 89 88 87 85 83 83 75 Engine 4 | . 5 2 . 9 5 9 9 6 5 7 6 4 6 2 . . . . . . . . Core 2 | . 8 11 14 4 3 . . 2 1 . . 1 . . . . . . . . . . Reactor 1 | . . . . . . . . . . . . . . 3 5 5 5 5 5 5 5 3 Treads 11 | . 13 13 14 14 9 9 17 18 20 . 11 13 13 13 11 6 5 5 5 5 5 3 Wheel 7 | . 13 14 14 14 7 9 . . 4 15 6 6 6 6 5 4 5 5 5 5 5 3 Device 9 | . 10 14 14 14 12 9 17 9 8 . 13 1 8 1 10 10 9 7 10 12 19 9 Storage 8 | . 14 14 14 14 9 9 9 9 7 7 6 6 6 6 5 5 5 5 5 5 5 3 Processor 10 | . . . . . 8 9 9 9 7 8 10 13 17 21 23 23 23 23 16 10 14 12 Hackware 5 | . . . . . . . . . 9 12 6 11 8 9 11 11 11 9 14 8 6 15 Protection 7 | . . . . . 13 17 9 17 3 6 6 12 4 5 . . 1 4 4 13 5 3 Energy Gun 7 | . 2 14 14 13 3 8 9 9 7 7 8 5 5 5 5 9 11 10 12 8 6 8 Energy Cannon 4 | . 8 . . . 4 8 8 9 6 5 4 3 . 5 2 4 . . . . 3 3 Ballistic Gun 8 | . 13 13 14 13 16 7 6 6 5 5 4 8 12 5 2 . 3 2 . 5 4 . Peak Build Rating 118 | 6 14 17 17 19 38 38 40 42 55 56 67 69 72 75 81 89 88 89 106 107 109 118 Average Rating 52 | 5 9 15 17 17 33 34 37 40 48 53 64 63 67 71 80 85 86 84 97 100 106 98 On Entrance 55 | . 6 14 17 17 18 37 35 40 42 55 56 67 65 69 75 81 88 83 88 106 104 105 Avg Prop Armor Cover (%) 11 | 14 12 12 12 12 9 7 9 . . . 12 10 12 12 15 16 15 12 10 6 8 8 Naked Turns 56 | . . . . . . . . . . . . . . . . . . . . . . 56 Heaviest Build 104 | 12 52 52 52 53 67 76 69 71 72 80 80 85 77 87 83 84 85 90 97 104 101 99 Greatest Support 130 | 16 16 16 16 16 42 12 44 44 88 56 56 28 28 28 28 130 28 28 28 70 28 70 Greatest Overweight (x) 27 | . 3 3 3 3 5 6 5 1 1 1 2 3 2 3 2 2 3 3 3 3 3 27 Average Overweight (x) 2 | . 2 2 3 3 3 5 1 1 . 1 1 2 2 2 2 1 2 2 2 2 3 2 Largest Inventory Capacity 20 | 8 20 20 20 20 20 20 20 20 20 20 20 20 20 20 20 20 20 20 20 20 20 20 Average Capacity 19 | 7 18 20 20 20 20 20 20 20 20 20 20 20 20 20 20 20 20 20 20 20 20 18 Most Carried 20 | 5 20 20 20 20 20 20 20 20 20 20 20 20 20 20 19 20 20 20 20 20 20 20 Average Carried 19 | 3 17 19 20 19 19 19 19 19 19 19 19 19 19 19 18 19 19 19 19 17 19 18 Final Capacity 20 | 8 20 20 20 20 20 20 20 20 20 20 20 20 20 20 20 20 20 20 20 20 20 5 Final Carried 20 | 5 19 20 20 20 20 20 20 20 20 20 20 20 20 20 17 20 19 20 20 18 20 5 Class Distribution -------------------- 20% | Mutant 12% | Tank 11% | Bothacker-Tank 9% | Botlord-Tank 9% | Bothacker-Skirmisher 7% | Skirmisher 7% | Bothacker-Gunner 6% | Scavenger-Tank 4% | Botlord-Gunner 3% | Commander-Gunner Dominant Class ---------------- Mutant | -10/Materials Mutant | -10/Mines Mutant | -10/Exiles Mutant | -9/Mines Tank | -8/Materials Scavenger-Tank | -8/Garrison Skirmisher | -8/Materials Tank | -8/Garrison Bothacker-Skirmisher | -7/Factory Bothacker-Tank | -7/Garrison Bothacker-Skirmisher | -6/Factory Bothacker-Tank | -6/Garrison Bothacker-Skirmisher | -6/Factory Bothacker-Gunner | -6/Garrison Botlord-Gunner | -5/Factory Botlord-Gunner | -5/Waste Bothacker-Gunner | -5/Factory Commander-Gunner | -5/Garrison Botlord-Tank | -4/Factory Botlord-Tank | -4/Garrison Botlord-Tank | -4/Factory Botlord-Tank | -3/Research Resources | -11 -10 -10 -10 -9 -8 -8 -8 -8 -7 -7 -6 -6 -6 -6 -5 -5 -5 -5 -4 -4 -4 -3 ----------- Run | Yrd Mat Min Exi Min Mat Gar Mat Gar Fac Gar Fac Gar Fac Gar Fac Was Fac Gar Fac Gar Fac Res Matter Collected 11016 | 300 340 398 . 274 1348 977 506 671 423 974 326 877 445 989 45 145 12 519 388 715 . 344 Remotely . | . . . . . . . . . . . . . . . . . . . . . . . Salvage Created 12082 | 162 391 592 . 320 1970 846 610 534 398 592 188 453 335 988 111 709 . 539 724 1099 . 521 Parts 580 | 15 23 36 . 18 118 40 36 46 27 24 10 16 13 48 4 8 . 12 23 47 . 16 Haulers Intercepted 7 | . 2 . . . 4 . 1 . . . . . . . . . . . . . . . Recyclers Shooed 4 | . . . . . 2 . 1 . . . . . . . . . . . . . . 1 Parts Field Recycled . | . . . . . . . . . . . . . . . . . . . . . . . Retrieved Matter . | . . . . . . . . . . . . . . . . . . . . . . . Parts Self-Destructed . | . . . . . . . . . . . . . . . . . . . . . . . Prevented . | . . . . . . . . . . . . . . . . . . . . . . . Parts Restored . | . . . . . . . . . . . . . . . . . . . . . . . Kills | -11 -10 -10 -10 -9 -8 -8 -8 -8 -7 -7 -6 -6 -6 -6 -5 -5 -5 -5 -4 -4 -4 -3 ------- Run | Yrd Mat Min Exi Min Mat Gar Mat Gar Fac Gar Fac Gar Fac Gar Fac Was Fac Gar Fac Gar Fac Res Combat Hostiles Destroyed 250 | . 7 18 . 9 36 22 10 23 10 20 3 11 6 21 2 3 . 10 9 28 . 2 Melee 1 | . . . . . . . . . . . . . 1 . . . . . . . . . Guns 135 | . 4 8 . 1 21 9 6 5 6 4 1 9 5 12 . 1 . 7 8 27 . 1 Cannons 37 | . 3 . . . 1 3 3 7 3 3 1 2 . 9 1 . . . . . . 1 AOE 69 | . . 10 . 8 14 10 1 11 1 13 1 . . . . . . . . . . . Classes Destroyed 21 | 2 6 . . . 4 3 . 1 . 1 1 . . 1 . 1 . . 1 . . . Worker 9 | . 1 . . 1 5 . 1 . . . . . . . . . . . . . . 1 Builder 5 | . 1 . . . 2 . . . 1 . 1 . . . . . . . . . . . Tunneler 8 | 5 . 1 . . 1 . 1 . . . . . . . . . . . . . . . Hauler 7 | . 2 . . . 4 . 1 . . . . . . . . . . . . . . . Recycler 14 | 1 . 3 . 2 4 . . . . . . . . . . . . . 1 . . 3 Mechanic 1 | . . . . . . . . . . . 1 . . . . . . . . . . . Operator 4 | . . . . . 3 . 1 . . . . . . . . . . . . . . . Watcher 9 | . 2 . . . 3 . 3 . . . . . . . . . . 1 . . . . Swarmer 80 | . 3 12 . 8 4 3 2 13 4 3 . 3 . 5 . . . . 2 18 . . Cutter 1 | . . . . . . . . . . . . . . 1 . . . . . . . . Saboteur 3 | . . . . . . . . . . 3 . . . . . . . . . . . . Grunt 89 | . 4 6 . 1 22 11 3 5 3 12 1 3 2 5 2 . . 5 2 1 . 1 Brawler 4 | . . . . . 1 . . . 2 . . . . 1 . . . . . . . . Duelist 4 | . . . . . . 1 . . . 1 1 . . . . . . . 1 . . . Sentry 33 | . . . . . 6 5 4 2 . . . 4 2 4 . . . 3 1 2 . . Demolisher 1 | . . . . . . 1 . . . . . . . . . . . . . . . . Specialist 4 | . . . . . . 1 . . . . . . . 2 . . . . 1 . . . Hunter 9 | . . . . . 3 . 1 . . . . 1 . . . . . . . 4 . . Programmer 17 | . . . . . . . . 3 1 1 1 . 2 3 . . . 1 1 3 . 1 Behemoth 1 | . . . . . . . . . . . . . . . . . . . 1 . . . Compactor 3 | . . . . . . . . . . . . . . . . 3 . . . . . . Thug 1 | . . . . . . . . . . . . . . . . . . 1 . . . . Best Kill Streak 16 | 5 3 3 . 4 14 5 3 4 2 5 4 3 1 3 2 2 . 2 6 16 . 4 Combat Bots Only 16 | . 2 3 . 4 9 5 2 4 2 5 2 3 1 3 2 2 . 2 6 16 . 1 Max Kills in Single Turn 4 | 1 2 2 . 4 4 2 2 4 1 3 2 1 1 2 1 1 . 1 1 2 . 1 Gunslinging 1 | . . . . . . . . . . . . . . . . . . . . 1 . . Exploded 4 | . . 2 . 4 2 2 1 4 1 3 1 . . . . . . . . . . . Melee 1 | . . . . . . . . . . . . . 1 . . . . . . . . . Uniques/NPCs Destroyed . | . . . . . . . . . . . . . . . . . . . . . . . Combat | -11 -10 -10 -10 -9 -8 -8 -8 -8 -7 -7 -6 -6 -6 -6 -5 -5 -5 -5 -4 -4 -4 -3 -------- Run | Yrd Mat Min Exi Min Mat Gar Mat Gar Fac Gar Fac Gar Fac Gar Fac Was Fac Gar Fac Gar Fac Res Hostile Shots Fired 1554 | . 48 52 . 5 101 52 23 71 51 74 27 252 65 187 . . . 29 140 223 6 148 Missed 488 | . 12 13 . 1 37 13 3 19 12 18 9 79 25 61 . . . 9 54 72 5 46 Hits 1066 | . 36 39 . 4 64 39 20 52 39 56 18 173 40 126 . . . 20 86 151 1 102 Melee 7 | . . . . . . . . . 1 3 . . . . . . . 1 2 . . . Projectile 1059 | . 36 39 . 4 64 39 20 52 38 53 18 173 40 126 . . . 19 84 151 1 102 AOE 5 | . . . . . . . . . . . . . . 5 . . . . . . . . Critical Strikes 33 | . 2 2 . . 3 4 . 3 1 1 . . 3 1 . . . . 2 8 1 2 Actively Blocked 3 | . . . . . . 1 . 1 1 . . . . . . . . . . . . . Part Disruptions 1 | . . . . . . . . 1 . . . . . . . . . . . . . . Damage Taken 17097 | . 497 435 . 56 1204 730 264 778 734 980 317 1834 503 1601 . 5 63 574 1505 2623 55 2339 Core 2776 | . 63 98 . . 136 48 24 76 127 62 15 191 68 92 . . . 119 110 216 22 1309 Absorbed by Shields 111 | . . . . . . . . . . . . 64 . . . . . . . . . 47 Redirected to Shielding 104 | . . . . . 32 6 2 9 55 . . . . . . . . . . . . . Regen/Repaired (Parts) 2242 | . 232 . . . 185 . 98 . 449 . . . 75 695 . 75 26 188 219 . . . Core Remaining (%) 67 | 100 . . . 35 . . . 48 . 73 . . . 56 . . . 88 . . 69 . Volleys Fired 801 | 10 61 45 . 8 85 44 30 38 27 51 11 57 27 76 3 27 1 54 31 78 7 30 Largest 3 | 2 2 2 . 2 3 3 3 3 3 3 3 3 3 3 2 3 1 3 3 3 3 3 Hottest 250 | 70 100 86 . 99 127 158 166 172 172 136 129 121 78 193 55 140 5 169 229 250 219 210 Shots Fired 1768 | 20 101 89 . 15 232 112 82 108 60 101 26 115 53 154 5 59 1 100 72 199 11 53 Gun 1215 | 20 47 79 . 11 174 72 55 62 32 64 14 61 43 84 2 32 . 82 66 187 4 24 Cannon 337 | . 39 . . . 30 30 26 36 19 16 9 28 . 46 2 20 . 1 . 5 5 25 Launcher 87 | . . 10 . 4 28 10 1 10 1 13 2 8 . . . . . . . . . . Special 129 | . 15 . . . . . . . 8 8 1 18 10 24 1 7 1 17 6 7 2 4 Kinetic 557 | 10 46 35 . 3 128 35 29 25 13 31 9 34 27 41 . . . 24 1 64 2 . Thermal 1010 | 10 55 44 . 8 76 67 52 73 38 49 14 55 16 89 4 52 . 59 65 128 7 49 Explosive 87 | . . 10 . 4 28 10 1 10 1 13 2 8 . . . . . . . . . . Electromagnetic . | . . . . . . . . . . . . . . . . . . . . . . . Robot Hit Streak 34 | 6 6 8 . 5 16 14 12 12 10 16 4 21 16 26 13 27 9 22 34 17 6 14 Robot Miss Streak 6 | 1 3 2 . 1 3 2 3 4 3 1 3 4 3 2 . 2 . 2 2 6 . 1 Penetration Max 1 | . . . . . 1 . 1 . . . 1 1 1 1 . . . . . 1 . . Secondary Targets 12 | . . . . . . . . . . . . . . . . . . 1 1 10 . . Max Gunslinging Chain 1 | . . . . . . . . . . . . . . . . . . 1 1 1 . . Shots Hit Robots 1000 | 12 54 53 . 5 110 67 44 42 27 36 14 57 37 105 5 50 1 72 61 109 5 34 Core Hits 505 | 7 16 27 . 11 101 33 25 37 15 34 11 33 13 33 2 7 . 23 20 45 1 11 Critical Kills 3 | . . . . . 1 . . . . . . . . . 1 1 . . . . . . Critical Parts Destroyed 7 | . 1 . . . . 1 . . . . . . . 1 . . . . . 2 . 2 Critical Strikes 44 | 1 1 3 . . 2 2 1 1 . 3 . . . 2 1 3 . 3 7 10 . 4 Burn 34 | 1 . 3 . . 1 1 1 1 . 3 . . . 1 . 2 . 3 7 8 . 2 Meltdown 2 | . . . . . . . . . . . . . . . 1 1 . . . . . . Destroy 8 | . 1 . . . 1 1 . . . . . . . 1 . . . . . 2 . 2 Melee Attacks 83 | . . . . . 9 28 20 6 5 8 1 4 2 . . . . . . . . . Impact . | . . . . . . . . . . . . . . . . . . . . . . . Slashing 83 | . . . . . 9 28 20 6 5 8 1 4 2 . . . . . . . . . Piercing . | . . . . . . . . . . . . . . . . . . . . . . . Sneak Attacks 1 | . . . . . . . . . . . . . 1 . . . . . . . . . Combat Hostiles . | . . . . . . . . . . . . . . . . . . . . . . . Follow-up Attacks . | . . . . . . . . . . . . . . . . . . . . . . . Damage Inflicted 26803 | 169 858 1566 . 417 4238 2000 1163 2097 576 1709 455 1437 719 2172 107 1148 . 1201 1336 2401 76 958 Guns 15020 | 169 440 874 . 106 1758 861 693 620 267 519 184 593 646 1110 39 578 . 1201 1336 2339 42 645 Cannons 5345 | . 418 . . . 452 423 395 479 289 219 140 429 . 1062 68 570 . . . 62 34 305 Explosions 6357 | . . 692 . 311 2028 716 75 998 20 971 131 415 . . . . . . . . . . Melee 73 | . . . . . . . . . . . . . 73 . . . . . . . . . Ramming 8 | . . . . . . . . . . . . . . . . . . . . . . 8 Kinetic 5792 | 55 440 370 . 12 1209 307 298 215 39 195 139 368 462 435 . . . 309 . 919 20 . Thermal 14648 | 114 418 579 . 94 1001 977 790 884 517 543 185 654 184 1737 107 1148 . 892 1336 1482 56 950 Explosive 6257 | . . 617 . 311 2003 716 75 998 20 971 131 415 . . . . . . . . . . Electromagnetic 25 | . . . . . 25 . . . . . . . . . . . . . . . . . Impact . | . . . . . . . . . . . . . . . . . . . . . . . Slashing 73 | . . . . . . . . . . . . . 73 . . . . . . . . . Piercing . | . . . . . . . . . . . . . . . . . . . . . . . Highest Corruption 32 | . . . . . 2 2 2 5 13 32 1 1 2 3 . . . . 8 10 11 6 Average Corruption 4 | . . . . . 2 2 2 2 12 14 1 1 1 2 . . . . 7 8 10 2 Corruption Purged . | . . . . . . . . . . . . . . . . . . . . . . . Corruption Blocked . | . . . . . . . . . . . . . . . . . . . . . . . Effects 249 | . . . . . 8 23 22 20 16 40 . 12 13 31 . . . . 13 29 19 3 Message Errors 55 | . . . . . 5 2 4 5 3 8 . 3 5 7 . . . . 2 6 5 . Matter Fused 62 | . . . . . . 9 9 4 3 10 . 2 2 3 . . . . 4 8 7 1 Heat Flow Errors 27 | . . . . . 1 . 3 4 1 7 . 1 1 5 . . . . . 1 3 . Energy Discharges 20 | . . . . . . 1 3 2 2 2 . 2 . 5 . . . . . 1 2 . Parts Rejected 8 | . . . . . . . 1 1 3 . . . . 1 . . . . 1 1 . . Parts Fused 4 | . . . . . . 1 . . . 3 . . . . . . . . . . . . Data Loss (minor) 28 | . . . . . 1 3 1 2 1 7 . 1 2 3 . . . . 2 3 1 1 Data Loss (major) 14 | . . . . . . 2 1 1 2 2 . 1 1 2 . . . . . 2 . . Misfires 14 | . . . . . 1 4 . 1 . 1 . 1 2 3 . . . . . 1 . . Alerts 6 | . . . . . . . . . 1 . . . . 2 . . . . . 2 1 . Weapon Failures 11 | . . . . . . 1 . . . . . 1 . . . . . . 4 4 . 1 Overload Shots 48 | . . . . . . . . . . 5 . 1 3 6 . . . 7 3 7 4 12 Effects 3 | . . . . . . . . . . . . . . . . . . 2 . . . 1 Energy Bleed 2 | . . . . . . . . . . . . . . . . . . 1 . . . 1 Heat Surge 1 | . . . . . . . . . . . . . . . . . . 1 . . . . Overflow Damage 414 | . 15 121 . 12 49 16 2 81 . 45 . . . . 4 . . . . . . 69 Projectiles 160 | . 15 . . . 7 . 2 63 . . . . . . 4 . . . . . . 69 Explosions 254 | . . 121 . 12 42 16 . 18 . 45 . . . . . . . . . . . . Melee . | . . . . . . . . . . . . . . . . . . . . . . . Knockbacks . | . . . . . . . . . . . . . . . . . . . . . . . Impact . | . . . . . . . . . . . . . . . . . . . . . . . Kinetic . | . . . . . . . . . . . . . . . . . . . . . . . Secondary . | . . . . . . . . . . . . . . . . . . . . . . . Self-Inflicted Damage 672 | . . 40 . 23 160 145 . 73 . 88 . 45 . 95 . . . . . . . 3 Shots 18 | . . 1 . 1 5 2 . 3 . 3 . 2 . 1 . . . . . . . . Rammed 4 | . . . . . . . . . . . . . . . . . . . . . . 4 Targets Rammed 4 | . . . . . . . . . . . . . . . . . . . . . . 4 Kicked . | . . . . . . . . . . . . . . . . . . . . . . . Crushed . | . . . . . . . . . . . . . . . . . . . . . . . Highest Temperature 410 | 27 282 96 . 24 167 356 257 368 410 311 24 252 222 243 . 263 . 329 333 350 206 341 Average Temperature 87 | 10 98 26 . 11 37 97 82 129 125 92 10 50 56 51 . 107 . 82 118 100 77 151 Received Heat Transfer 3342 | . 279 165 . 6 441 333 90 189 54 285 111 396 133 276 . . . 90 72 202 37 183 Effects 14 | . 1 . . . . . 1 1 . 6 . . . . . 1 . . . 4 . . Energy Bleed 3 | . . . . . . . . 1 . . . . . . . 1 . . . 1 . . Interference 11 | . 1 . . . . . 1 . . 6 . . . . . . . . . 3 . . Siege Activations . | . . . . . . . . . . . . . . . . . . . . . . . Martial Activations . | . . . . . . . . . . . . . . . . . . . . . . . Shielding Activations . | . . . . . . . . . . . . . . . . . . . . . . . Robots Disrupted 1 | . . . . . 1 . . . . . . . . . . . . . . . . . Combat Hostiles 1 | . . . . . 1 . . . . . . . . . . . . . . . . . Robots Corrupted . | . . . . . . . . . . . . . . . . . . . . . . . Combat Hostiles . | . . . . . . . . . . . . . . . . . . . . . . . Parts Fried . | . . . . . . . . . . . . . . . . . . . . . . . Impact Corruptions . | . . . . . . . . . . . . . . . . . . . . . . . Robots Melted 8 | . . . . . . . . . . . . . . . 1 2 . 3 1 1 . . Combat Hostiles 8 | . . . . . . . . . . . . . . . 1 2 . 3 1 1 . . Parts Melted 58 | 1 2 4 . 1 . 2 1 2 4 1 . 4 2 9 . 4 . 7 4 7 . 3 Heat Transferred 27343 | 407 888 1395 . 185 1850 1739 1332 1369 892 1214 259 1017 333 2992 174 2403 . 1739 2616 3040 87 1412 Parts Sabotaged 3 | . . . . . . . . . . . . . . . . . . 3 . . . . Parts Stolen . | . . . . . . . . . . . . . . . . . . . . . . . Parts Stripped . | . . . . . . . . . . . . . . . . . . . . . . . Power Chain Reactions . | . . . . . . . . . . . . . . . . . . . . . . . Alert | -11 -10 -10 -10 -9 -8 -8 -8 -8 -7 -7 -6 -6 -6 -6 -5 -5 -5 -5 -4 -4 -4 -3 ------- Run | Yrd Mat Min Exi Min Mat Gar Mat Gar Fac Gar Fac Gar Fac Gar Fac Was Fac Gar Fac Gar Fac Res Maximum Alert Level 5 | . . . . . 3 4 3 4 2 4 2 3 2 5 4 2 . 5 3 4 2 1 Low Security (%) 23 | 100 100 100 . 100 27 . . . . . . . . . . 57 100 4 . . . 78 Level 1 6 | . . . . . 4 . . 10 . 4 . 3 50 3 . 33 . 13 . . . 21 Level 2 32 | . . . . . 35 21 71 43 100 22 100 29 49 31 . 8 . 9 7 21 100 . Level 3 23 | . . . . . 32 25 28 35 . 52 . 67 . 28 . . . 12 92 25 . . Level 4 12 | . . . . . . 53 . 10 . 20 . . . 19 100 . . 55 . 52 . . Level 5 1 | . . . . . . . . . . . . . . 17 . . . 4 . . . . High Security . | . . . . . . . . . . . . . . . . . . . . . . . Max Security . | . . . . . . . . . . . . . . . . . . . . . . . Peak Influence 2294 | 10 190 192 . 172 860 1567 828 1154 605 1247 654 948 479 2294 1240 427 104 1662 872 1310 676 249 Initial 1204 | . . 9 . . . 462 763 325 605 380 654 371 479 300 1204 427 9 50 872 506 676 249 Average 611 | 1 67 113 . 56 439 1077 598 722 519 881 594 762 394 1063 1206 193 41 1055 777 1014 570 128 Influence Increases 13882 | 30 547 584 . 267 1498 1165 440 849 380 907 234 763 408 2164 66 4 202 1872 306 994 24 178 Destroy 0b10 Robot/C 6360 | . 140 360 . 180 720 520 200 460 200 480 120 380 140 860 40 . 40 660 180 640 . 40 Destroy 0b10 Robot/NC 320 | 30 30 20 . 15 110 . 35 . 5 . 15 . 5 10 . . 15 5 5 . . 20 Destroy Leader 824 | . 38 70 . 20 184 20 78 40 30 20 20 10 62 60 . . 22 40 50 60 . . Allied During Kill 1583 | . . 6 . . . 35 . . . 38 10 49 69 625 26 . 77 570 33 37 . 8 Successful Hack 355 | . 11 . . . 58 28 9 14 80 14 25 . 50 . . . . 14 6 14 14 18 Select Force Hacks 210 | . 60 . . . 30 . . . 30 . . . 60 . . . . . . . . 30 Disable Machine 435 | . 45 30 . 15 150 . 60 30 . . 30 15 15 . . . . 15 30 . . . Anti-Garrison Action 2000 | . . . . . . 350 . 200 . 250 . 250 . 500 . . . 350 . 100 . . Destroy Structure 1255 | . 13 68 . 37 186 167 43 90 20 105 14 59 7 94 . 4 48 218 2 38 10 32 Partial Spotted 15 | . . . . . . . . . . . . . . . . . . . . 15 . . Lose Combat Pursuer 525 | . 210 30 . . 60 45 15 15 15 . . . . 15 . . . . . 90 . 30 Influence Decreases 13860 | 30 521 502 108 267 786 310 1507 195 991 203 951 379 893 299 1140 1211 143 282 1244 428 838 632 Entered New Map 7140 | . . 17 108 . . 250 804 175 549 163 593 159 435 129 1090 793 4 22 790 218 614 227 Time Decay 4623 | 30 351 445 . 267 586 . 553 . 422 . 318 . 428 . 50 318 69 . 294 . 214 278 Lost Part 427 | . 20 20 . . 50 . . 10 20 20 . 60 10 10 . . 10 . 50 90 10 47 Lost Ally 1220 | . . 20 . . . 60 . 10 . 20 40 160 20 160 . 100 60 260 110 120 . 80 Purge Threat 450 | . 150 . . . 150 . 150 . . . . . . . . . . . . . . . Squads Dispatched 37 | . 2 . . 1 8 . 1 . 3 . 4 . 8 . . . . . 5 . 1 4 Investigation 12 | . 2 . . 1 2 . . . 1 . 1 . 3 . . . . . . . . 2 Extermination 7 | . . . . . . . . . 1 . 2 . 2 . . . . . 1 . . 1 Reinforcement 9 | . . . . . 6 . . . 1 . . . . . . . . . 1 . 1 . Assault 3 | . . . . . . . 1 . . . 1 . . . . . . . 1 . . . Garrison 6 | . . . . . . . . . . . . . 3 . . . . . 2 . . 1 Intercept . | . . . . . . . . . . . . . . . . . . . . . . . Searches Triggered . | . . . . . . . . . . . . . . . . . . . . . . . Construction Impeded 2 | . . . . . 2 . . . . . . . . . . . . . . . . . Haulers Reinforced . | . . . . . . . . . . . . . . . . . . . . . . . Active Scanning Responses . | . . . . . . . . . . . . . . . . . . . . . . . Cargo Convoy Interrupts . | . . . . . . . . . . . . . . . . . . . . . . . Alert ID Control Effect 8 | . . . . . . . . . . . . . . . . . . 2 6 . . . Stealth | -11 -10 -10 -10 -9 -8 -8 -8 -8 -7 -7 -6 -6 -6 -6 -5 -5 -5 -5 -4 -4 -4 -3 --------- Run | Yrd Mat Min Exi Min Mat Gar Mat Gar Fac Gar Fac Gar Fac Gar Fac Was Fac Gar Fac Gar Fac Res Distress Signals 12 | . . . . . 4 . 2 . . . . . . 1 . . 2 . . . 1 2 Communications Jammed 41 | . . . . . . . . . 7 . . . . . . . . 6 . . . 28 Distress Signals 41 | . . . . . . . . . 7 . . . . . . . . 6 . . . 28 Times Spotted 470 | . 29 20 . 7 54 24 25 22 16 30 9 31 12 51 2 6 2 40 21 42 3 24 Peak Tracking Total 16 | . 5 3 . 4 7 5 5 4 3 8 4 7 1 4 1 2 2 7 8 9 3 16 Tactical Retreats 23 | . 10 2 . . 2 2 1 1 1 . . . . 1 . . . . . 2 . 1 Traps | -11 -10 -10 -10 -9 -8 -8 -8 -8 -7 -7 -6 -6 -6 -6 -5 -5 -5 -5 -4 -4 -4 -3 ------- Run | Yrd Mat Min Exi Min Mat Gar Mat Gar Fac Gar Fac Gar Fac Gar Fac Was Fac Gar Fac Gar Fac Res Traps Triggered 45 | . . . . . 2 5 . 6 3 5 . 9 1 6 1 . 1 3 2 . . 1 Indirectly 1 | . . . . . 1 . . . . . . . . . . . . . . . . . Trap Hack Attempts . | . . . . . . . . . . . . . . . . . . . . . . . Triggered . | . . . . . . . . . . . . . . . . . . . . . . . Disarmed . | . . . . . . . . . . . . . . . . . . . . . . . Reprogrammed . | . . . . . . . . . . . . . . . . . . . . . . . Reused . | . . . . . . . . . . . . . . . . . . . . . . . Traps Extracted . | . . . . . . . . . . . . . . . . . . . . . . . Installed . | . . . . . . . . . . . . . . . . . . . . . . . Triggered . | . . . . . . . . . . . . . . . . . . . . . . . Machines | -11 -10 -10 -10 -9 -8 -8 -8 -8 -7 -7 -6 -6 -6 -6 -5 -5 -5 -5 -4 -4 -4 -3 ---------- Run | Yrd Mat Min Exi Min Mat Gar Mat Gar Fac Gar Fac Gar Fac Gar Fac Was Fac Gar Fac Gar Fac Res Machines Disabled 63 | . 3 2 . 1 10 6 4 4 . 7 2 4 1 8 . . . 7 2 2 . . Max in Single Turn 2 | . 1 2 . 1 2 2 1 1 . 1 1 1 1 2 . . . 2 1 1 . . Garrison Access 1 | . . . . . . . . . . . . . . . . . . . . . 1 . Garrison Relay 25 | . . . . . . 4 . 2 . 4 . 4 . 5 . . . 4 . 2 . . Phase Generator 4 | . . . . . . 1 . . . 1 . . . 1 . . . 1 . . . . Machines Repaired . | . . . . . . . . . . . . . . . . . . . . . . . Machines Dismantled . | . . . . . . . . . . . . . . . . . . . . . . . Machines Sabotaged . | . . . . . . . . . . . . . . . . . . . . . . . Overloaded Fab Kills . | . . . . . . . . . . . . . . . . . . . . . . . Hacking | -11 -10 -10 -10 -9 -8 -8 -8 -8 -7 -7 -6 -6 -6 -6 -5 -5 -5 -5 -4 -4 -4 -3 --------- Run | Yrd Mat Min Exi Min Mat Gar Mat Gar Fac Gar Fac Gar Fac Gar Fac Was Fac Gar Fac Gar Fac Res Machines Accessed 98 | . 11 . 1 1 12 4 11 3 9 3 8 1 12 1 2 . 3 2 4 1 2 7 Terminals 53 | . 8 . . . 7 4 7 3 1 3 2 1 4 1 1 . 1 2 1 1 1 5 Fabricators 9 | . . . . . . . . . 1 . 3 . 2 . 1 . 1 . 1 . . . Repair Stations 9 | . 1 . . . 2 . 1 . 3 . . . 1 . . . . . . . . 1 Recycling Units 8 | . 2 . . . 1 . . . 1 . . . 2 . . . . . 1 . . 1 Scanalyzers 7 | . . . . . 1 . 2 . 1 . 2 . 1 . . . . . . . . . Garrison Access 10 | . . . . . 1 . 1 . 2 . 1 . 2 . . . 1 . 1 . 1 . Total Hacks 281 | . 45 . 23 1 43 9 33 5 31 6 19 2 22 2 5 . 5 3 10 1 5 11 Successful 156 | . 22 . 23 1 25 2 18 1 22 1 12 . 11 . 2 . 3 1 5 1 3 3 Failed 122 | . 22 . . . 18 7 14 4 9 5 6 2 11 2 3 . 2 2 5 . 2 8 Catastrophic 21 | . 2 . . . 1 2 3 2 . 3 . . 3 . . . . . 1 . . 4 Database Lockouts 3 | . 1 . . . . . 1 . . . 1 . . . . . . . . . . . Manual 104 | . 20 . . . 23 . 21 1 5 . 5 . 11 . 2 . 3 . 7 . 3 3 Terminals 143 | . 33 . . . 25 9 21 5 2 6 5 2 8 2 2 . 3 3 6 1 2 8 Fabricators 17 | . . . . . . . . . 3 . 6 . 3 . 3 . 1 . 1 . . . Repair Stations 36 | . 6 . . . 12 . 2 . 13 . . . 2 . . . . . . . . 1 Recycling Units 24 | . 6 . . . 3 . . . 6 . . . 5 . . . . . 2 . . 2 Scanalyzers 24 | . . . . . 2 . 9 . 5 . 6 . 2 . . . . . . . . . Garrison Access 13 | . . . . . 1 . 1 . 2 . 2 . 2 . . . 1 . 1 . 3 . Terminal Hacks 48 | . 8 . 23 1 6 2 3 1 . 1 . . . . . . . 1 . 1 . 1 Record 23 | . . . 23 . . . . . . . . . . . . . . . . . . . Robot Analysis 5 | . 2 . . . 3 . . . . . . . . . . . . . . . . . Prototype ID Bank 1 | . 1 . . . . . . . . . . . . . . . . . . . . . Open Door 1 | . . . . 1 . . . . . . . . . . . . . . . . . . Emergency Access Points 3 | . . . . . . 1 . . . 1 . . . . . . . . . 1 . . Terminal Index 4 | . 1 . . . 1 . 1 . . . . . . . . . . . . . . 1 Unreport Threat 3 | . 1 . . . 1 . 1 . . . . . . . . . . . . . . . Locate Traps 3 | . 2 . . . . . 1 . . . . . . . . . . . . . . . Zone Layout 2 | . 1 . . . 1 . . . . . . . . . . . . . . . . . Patrol Navigation 3 | . . . . . . 1 . 1 . . . . . . . . . 1 . . . . Fabricator Hacks 10 | . . . . . . . . . 1 . 4 . 1 . 2 . 1 . 1 . . . Network Status 5 | . . . . . . . . . . . 1 . 1 . 1 . 1 . 1 . . . Load Schematic 4 | . . . . . . . . . 1 . 2 . . . 1 . . . . . . . Build 1 | . . . . . . . . . . . 1 . . . . . . . . . . . Repair Station Hacks 30 | . 6 . . . 10 . 2 . 10 . . . 2 . . . . . . . . . Scan Component 16 | . 3 . . . 5 . 1 . 6 . . . 1 . . . . . . . . . Repair 14 | . 3 . . . 5 . 1 . 4 . . . 1 . . . . . . . . . Recycling Unit Hacks 10 | . 3 . . . 2 . . . 2 . . . 1 . . . . . 1 . . 1 Report Inventory 7 | . 2 . . . 1 . . . 1 . . . 1 . . . . . 1 . . 1 Retrieve Components 3 | . 1 . . . 1 . . . 1 . . . . . . . . . . . . . Scanalyzer 20 | . . . . . 2 . 7 . 5 . 4 . 2 . . . . . . . . . Insert Component 7 | . . . . . 1 . 3 . 2 . 1 . . . . . . . . . . . Analyze 6 | . . . . . 1 . 2 . 2 . 1 . . . . . . . . . . . Retrieve Study 7 | . . . . . . . 2 . 1 . 2 . 2 . . . . . . . . . Garrison Access Hacks 10 | . . . . . 1 . 1 . 1 . 2 . 1 . . . 1 . 1 . 2 . Unlock Access 7 | . . . . . 1 . 1 . 1 . 1 . 1 . . . 1 . 1 . . . Seal Access 1 | . . . . . . . . . . . . . . . . . . . . . 1 . Coupler Status 2 | . . . . . . . . . . . 1 . . . . . . . . . 1 . Unauthorized Hacks 28 | . 5 . . . 4 . 5 . 3 . 2 . 4 . . . 1 . 2 . 1 1 Terminals 18 | . 3 . . . 3 . 5 . . . 2 . 1 . . . 1 . 2 . 1 . Assimilate 2 | . . . . . . . 2 . . . . . . . . . . . . . . . Botnet 10 | . 2 . . . 2 . 2 . . . 1 . . . . . 1 . 1 . 1 . Operators 6 | . 1 . . . 1 . 1 . . . 1 . 1 . . . . . 1 . . . Fabricators . | . . . . . . . . . . . . . . . . . . . . . . . Repair Stations . | . . . . . . . . . . . . . . . . . . . . . . . Recycling Units 8 | . 2 . . . 1 . . . 2 . . . 2 . . . . . . . . 1 Recyclers 1 | . . . . . . . . . 1 . . . . . . . . . . . . . Tunnel 7 | . 2 . . . 1 . . . 1 . . . 2 . . . . . . . . 1 Scanalyzers . | . . . . . . . . . . . . . . . . . . . . . . . Garrison Access 2 | . . . . . . . . . 1 . . . 1 . . . . . . . . . Reprogram 1 | . . . . . . . . . . . . . 1 . . . . . . . . . Watchers 1 | . . . . . . . . . 1 . . . . . . . . . . . . . Data Cores Recovered 1 | . . . . . . . . . . . . . . . . . 1 . . . . . Used . | . . . . . . . . . . . . . . . . . . . . . . . Hacking Detections 83 | . 10 . . . 11 4 9 3 6 2 7 1 10 1 2 . 2 2 4 1 2 6 Full Trace Events 3 | . . . . . . . 1 . . . 1 . . . . . . . . . . 1 Feedback Events 1 | . . . . . . . . . . . . . . . . . . . . . . 1 Corruption 1 | . . . . . . . . . . . . . . . . . . . . . . 1 Feedback Blocked . | . . . . . . . . . . . . . . . . . . . . . . . Robot Schematics Acquired . | . . . . . . . . . . . . . . . . . . . . . . . Robots Built . | . . . . . . . . . . . . . . . . . . . . . . . Authchips . | . . . . . . . . . . . . . . . . . . . . . . . Time . | . . . . . . . . . . . . . . . . . . . . . . . Total Robot Build Rating . | . . . . . . . . . . . . . . . . . . . . . . . Part Schematics Acquired 6 | . . . . . 1 . 2 . 2 . 1 . . . . . . . . . . . Parts Built 2 | . . . . . . . . . . . 2 . . . . . . . . . . . Authchips . | . . . . . . . . . . . . . . . . . . . . . . . Time 42 | . . . . . . . . . . . 42 . . . . . . . . . . . Total Part Build Rating 8 | . . . . . . . . . . . 8 . . . . . . . . . . . Part Studies Acquired 6 | . . . . . . . 1 . 1 . 2 . 2 . . . . . . . . . Parts Repaired 14 | . 3 . . . 5 . 1 . 4 . . . 1 . . . . . . . . . Time 511 | . 78 . . . 190 . 44 . 164 . . . 35 . . . . . . . . . Parts Recycled . | . . . . . . . . . . . . . . . . . . . . . . . Recycled Matter . | . . . . . . . . . . . . . . . . . . . . . . . Retrieved Matter . | . . . . . . . . . . . . . . . . . . . . . . . Retrieved Components 18 | . 2 . . . 7 . . . 9 . . . . . . . . . . . . . Parts Scanalyzed 6 | . . . . . 1 . 2 . 2 . 1 . . . . . . . . . . . Part Schematics Acquired 6 | . . . . . 1 . 2 . 2 . 1 . . . . . . . . . . . Parts Damaged 1 | . . . . . . . . . 1 . . . . . . . . . . . . . Bothacking | -11 -10 -10 -10 -9 -8 -8 -8 -8 -7 -7 -6 -6 -6 -6 -5 -5 -5 -5 -4 -4 -4 -3 ------------ Run | Yrd Mat Min Exi Min Mat Gar Mat Gar Fac Gar Fac Gar Fac Gar Fac Was Fac Gar Fac Gar Fac Res Used RIF Installer 9 | . . . . . . 1 . 2 . 1 . 1 . 1 . . . 1 . 2 . . Command Fork 1 | . . . . . . . . . . . . . . 1 . . . . . . . . Signal Jammer 1 | . . . . . . . . 1 . . . . . . . . . . . . . . Zone Cloak 1 | . . . . . . . . . . . . 1 . . . . . . . . . . Watcher Feeds 1 | . . . . . . . . . . . . . . . . . . . . 1 . . Patrol Navigation 1 | . . . . . . . . . . 1 . . . . . . . . . . . . Alert ID Control 1 | . . . . . . . . . . . . . . . . . . 1 . . . . Program Shield 1 | . . . . . . . . 1 . . . . . . . . . . . . . . Autoassimilate 1 | . . . . . . . . . . . . . . . . . . . . 1 . . Robots Hacked 68 | . . . . . . . . . 4 8 1 9 7 10 1 6 1 4 5 6 2 4 Non-combat 7 | . . . . . . . . . 2 . . . 1 1 . . 1 . . . 1 1 Combat 61 | . . . . . . . . . 2 8 1 9 6 9 1 6 . 4 5 6 1 3 Autoassimilated 1 | . . . . . . . . . . . . . . . . . . . . . . 1 Robot Hacks Applied 72 | . . . . . . . . . 5 8 1 10 8 10 1 6 1 4 6 7 2 3 parse_system 2 | . . . . . . . . . . . . . . . . . . . . 2 . . ignore_repairs 2 | . . . . . . . . . . . . . . . . . . . . . 1 1 map_route 3 | . . . . . . . . . 1 . . . 1 . . . 1 . . . . . mark_security 1 | . . . . . . . . . 1 . . . . . . . . . . . . . ignore_targets 6 | . . . . . . . . . . . . . . . . 6 . . . . . . find_garrison 3 | . . . . . . . . . . . . . 1 . 1 . . . 1 . . . tweak_propulsion 1 | . . . . . . . . . . . . 1 . . . . . . . . . . amplify_resonance 18 | . . . . . . . . . 1 5 1 3 . 3 . . . 4 1 . . . wipe_record 1 | . . . . . . . . . . . . . . . . . . . . 1 . . disable_weapons 2 | . . . . . . . . . . . . . 1 . . . . . 1 . . . reboot_system 3 | . . . . . . . . . . . . . 1 1 . . . . . 1 . . overwrite_iff 1 | . . . . . . . . . . . . . . . . . . . 1 . . . streamctrl_high 1 | . . . . . . . . . . . . . . . . . . . . 1 . . formatsys_low 2 | . . . . . . . . . 1 . . . . 1 . . . . . . . . formatsys_high 26 | . . . . . . . . . 1 3 . 6 4 5 . . . . 2 2 1 2 Relay Couplers Released 100 | . . . . . . 15 . 10 . 16 . 15 . 24 . . . 14 . 6 . . Machine Destruction 100 | . . . . . . 15 . 10 . 16 . 15 . 24 . . . 14 . 6 . . Attached 41 | . . . . . . . . . 3 7 . 7 4 8 1 1 . 2 4 2 1 1 Fabnet Peak Effective % . | . . . . . . . . . . . . . . . . . . . . . . . Robots Rewired 20 | . . . . . . 3 . . . . . 3 . 6 . . . 8 . . . . Allies Hacked 2 | . . . . . . . . . . . . . . 1 . . . . . . . 1 Hacks Repelled . | . . . . . . . . . . . . . . . . . . . . . . . Allies | -11 -10 -10 -10 -9 -8 -8 -8 -8 -7 -7 -6 -6 -6 -6 -5 -5 -5 -5 -4 -4 -4 -3 -------- Run | Yrd Mat Min Exi Min Mat Gar Mat Gar Fac Gar Fac Gar Fac Gar Fac Was Fac Gar Fac Gar Fac Res Total Allies 80 | . . 2 . 1 . 3 1 . 2 3 . 9 7 12 . 19 . 8 3 5 2 3 Largest Group 22 | . . 2 . 1 . 3 1 1 2 3 3 5 7 11 8 22 22 17 9 2 2 3 Highest-Rated Group 768 | . . 45 . 31 . 72 10 10 55 96 96 157 270 334 235 768 768 636 300 175 105 169 Highest-Rated Ally 142 | . . 31 . 31 . 24 10 10 32 32 32 47 90 41 41 50 50 50 142 142 58 64 Total Orders 99 | . . . . . . 3 3 1 1 18 3 7 12 23 . 12 3 . . 2 2 9 STAY 22 | . . . . . . . 1 1 . 7 . . 4 5 . . . . . 1 . 3 FOLLOW 4 | . . . . . . . 2 . . . . . 1 1 . . . . . . . . GUARD 67 | . . . . . . 3 . . . 10 3 7 7 16 . 9 3 . . 1 2 6 AID 6 | . . . . . . . . . 1 1 . . . 1 . 3 . . . . . . Ally Attacks 548 | . . 4 . . . 24 . . . 11 18 59 30 119 3 57 38 113 40 28 . 4 Total Damage 15770 | . . 63 . . . 616 . . . 411 492 1015 488 3098 51 2200 591 4014 1314 1337 . 80 Kills 93 | . . . . . . 4 . . . 4 4 9 2 26 . 3 5 26 6 4 . . Allies Corrupted 2 | . . . . . . 1 . . . . . . . . . . . . . . . 1 Allies Melted 1 | . . . . . . . . . . . . . . . . . . 1 . . . . Intel | -11 -10 -10 -10 -9 -8 -8 -8 -8 -7 -7 -6 -6 -6 -6 -5 -5 -5 -5 -4 -4 -4 -3 ------- Run | Yrd Mat Min Exi Min Mat Gar Mat Gar Fac Gar Fac Gar Fac Gar Fac Was Fac Gar Fac Gar Fac Res Active Infowar (turns) 12076 | . 421 . . . 643 2 1505 2 1010 95 712 27 1029 1807 116 708 184 1261 650 849 453 602 Optics 7264 | . . . . . . . . . . . . . 634 1807 116 708 184 1261 650 849 453 602 Sensors 985 | . . . . . . . . . . . . . 2 . . . . . . . 442 541 Terrain 6214 | . . . . . 638 2 1505 2 1010 95 712 27 1029 241 116 708 129 . . . . . Structural 746 | . 421 . . . 325 . . . . . . . . . . . . . . . . . Robot Analysis Total 5 | . 2 . . . 3 . . . . . . . . . . . . . . . . . Derelict Logs Recovered 3 | . . 2 . 1 . . . . . . . . . . . . . . . . . . Drone Launches . | . . . . . . . . . . . . . . . . . . . . . . . Drone Recoveries . | . . . . . . . . . . . . . . . . . . . . . . . Exploration | -11 -10 -10 -10 -9 -8 -8 -8 -8 -7 -7 -6 -6 -6 -6 -5 -5 -5 -5 -4 -4 -4 -3 ------------- Run | Yrd Mat Min Exi Min Mat Gar Mat Gar Fac Gar Fac Gar Fac Gar Fac Was Fac Gar Fac Gar Fac Res Turns Passed 23091 | 176 1327 1101 523 916 2143 1609 1615 1380 1033 1055 712 1761 1051 1807 116 708 184 1261 650 849 453 661 Spaces Moved 12899 | 113 637 629 360 579 867 732 650 634 568 693 500 1188 687 1111 88 470 125 774 357 414 294 429 Core 95 | 1 . . . . . . . . . . . . . . . . . . . . . 94 Treads 1705 | . . . . . 91 . 585 634 388 . . . . . . 3 . . . 1 . 3 Legs . | . . . . . . . . . . . . . . . . . . . . . . . Wheels 11099 | 112 637 629 360 579 776 732 65 . 180 693 500 1188 687 1111 88 467 125 774 357 413 294 332 Hover . | . . . . . . . . . . . . . . . . . . . . . . . Flight . | . . . . . . . . . . . . . . . . . . . . . . . Fastest Speed 50 | 50 100 130 145 145 130 165 165 185 105 105 105 120 120 120 120 120 120 120 120 135 135 50 Average Speed 138 | 99 139 144 145 145 164 174 183 185 132 105 117 120 120 121 120 120 121 131 134 135 135 123 Slowest Speed 1400 | 100 145 145 145 145 237 180 225 185 145 105 120 135 120 135 120 160 135 135 135 240 135 1400 Overloaded Moves . | . . . . . . . . . . . . . . . . . . . . . . . Propulsion Burnouts . | . . . . . . . . . . . . . . . . . . . . . . . Robots Hopped 1 | . . . . . . . . . . . . . . . . . . 1 . . . . Potential Cave-ins 4 | . . . . . 4 . . . . . . . . . . . . . . . . . Cave-ins Triggered . | . . . . . . . . . . . . . . . . . . . . . . . Exploration Rate (%) 54 | 5 98 100 77 98 81 92 46 76 17 74 14 73 16 91 3 96 6 91 10 50 8 23 Regions Visited 22 Branch Regions 3 Pre-discovered Areas 9 | . 2 1 1 . 1 . . . 1 . . . 2 . . . . . . . . 1 Known Exits Taken 8 | . . . . . 1 . 1 . 1 . 1 . 1 . . . 1 . 1 . 1 . Unknown Exits Taken 5 | 1 1 1 1 1 . . . . . . . . . . . . . . . . . . Scrap Searched 3 | . . 1 . 2 . . . . . . . . . . . . . . . . . . Spaces Dug 91 | . 12 . . . 8 8 19 1 5 3 1 2 4 4 . . . 5 . 1 6 12 Terrain Destroyed 1053 | . 12 81 . 37 265 100 44 67 15 125 11 54 4 130 . 2 . 81 . 4 7 14 Melee 44 | . . . . . 8 7 18 1 5 1 1 2 1 . . . . . . . . . Projectile 87 | . 12 . . . 5 2 10 4 . 5 2 3 3 6 . 2 . 8 . 4 7 14 AOE 922 | . . 81 . 37 252 91 16 62 10 119 8 49 . 124 . . . 73 . . . . Terrain Rammed . | . . . . . . . . . . . . . . . . . . . . . . . Walls Destroyed . | . . . . . . . . . . . . . . . . . . . . . . . Machines Disabled . | . . . . . . . . . . . . . . . . . . . . . . . Actions | -11 -10 -10 -10 -9 -8 -8 -8 -8 -7 -7 -6 -6 -6 -6 -5 -5 -5 -5 -4 -4 -4 -3 --------- Run | Yrd Mat Min Exi Min Mat Gar Mat Gar Fac Gar Fac Gar Fac Gar Fac Was Fac Gar Fac Gar Fac Res Total 16621 | 153 938 733 361 642 1401 923 971 741 787 911 601 1418 866 1442 96 581 155 949 480 603 345 524 Wait 1475 | 17 161 37 . 26 269 14 210 22 104 61 45 28 92 136 . 49 26 63 40 29 17 29 Move 12878 | 112 636 628 359 578 866 731 650 633 568 692 499 1187 686 1110 88 469 124 771 356 413 293 429 Hop 1 | . . . . . . . . . . . . . . . . . . 1 . . . . Pick Up 231 | 6 27 5 . 8 38 6 8 3 16 11 12 14 7 11 . 8 . 9 11 20 6 5 Fast Attach 117 | 6 9 . . 1 20 3 1 1 10 7 4 6 6 17 . 6 . 3 5 7 2 3 Attach 85 | . 1 2 . . 12 1 2 1 8 5 5 9 4 1 2 1 1 4 8 10 4 4 Detach 5 | . . . . . . . . . 1 . . . . . . . . . . 1 2 1 Swap 482 | 1 24 12 1 10 53 39 38 26 29 38 11 36 28 39 2 8 3 20 21 28 8 7 Drop 275 | 1 19 4 1 11 49 11 12 5 19 14 13 17 13 28 1 13 . 8 8 17 6 5 Fire 801 | 10 61 45 . 8 85 44 30 38 27 51 11 57 27 76 3 27 1 54 31 78 7 30 Melee 83 | . . . . . 9 28 20 6 5 8 1 4 2 . . . . . . . . . Ram 4 | . . . . . . . . . . . . . . . . . . . . . . 4 Kick . | . . . . . . . . . . . . . . . . . . . . . . . Crush . | . . . . . . . . . . . . . . . . . . . . . . . Escape Stasis 160 | . . . . . . 24 . 6 . 24 . 59 . 24 . . . 16 . . . 7 Rewire 24 | . . . . . . 22 . . . . . 1 1 . . . . . . . . . Trap . | . . . . . . . . . . . . . . . . . . . . . . . Miscellaneous . | . . . . . . . . . . . . . . . . . . . . . . . Route ------- -11/Scrapyard -10/Materials (discovered 6 exits: [*Mat x3] / [*Min x2] / [*Sub]) -10/Mines (discovered 4 exits: [*Mat x2] / *Exi / [*Sub]) -10/Exiles (discovered 2 exits: *Min x2) -9/Mines (discovered 2 exits: *Mat x2) -8/Materials (discovered 4 exits: *Fac x3 / Gar) -8/Garrison (discovered 4 exits: *Fac x3 / *Mat) -8/Materials (discovered 2 exits: Fac / Gar) -8/Garrison (discovered 2 exits: *Fac x2) -7/Factory -7/Garrison (discovered 3 exits: *Fac x3) -6/Factory (discovered 3 exits: *Fac / [*Low] / Gar) -6/Garrison (discovered 4 exits: *Fac x3 / *Fac) -6/Factory (discovered 4 exits: *Fac x2 / [*Low] / Gar) -6/Garrison (discovered 4 exits: *Fac x3 / [Fac]) -5/Factory -5/Waste -5/Factory -5/Garrison (discovered 3 exits: *Fac x3) -4/Factory -4/Garrison -4/Factory -3/Research History --------- Turn | Location | Event 23 | -11/Scrapyard | Discovered new exit (range 15) 177 | -11/Scrapyard | Entered Materials 264 | -10/Materials | Discovered new exit (range 5) 333 | -10/Materials | Build established: Mutant 423 | -10/Materials | Discovered new exit (range 10) 771 | -10/Materials | Repaired Lgt. Treads 822 | -10/Materials | Repaired Beam Cannon 849 | -10/Materials | Repaired Assault Rifle 949 | -10/Materials | Discovered new exit (range 16) 1032 | -10/Materials | Discovered new exit (range 10) 1114 | -10/Materials | Central database locked down 1180 | -10/Materials | Discovered new exit (range 3) 1343 | -10/Materials | Discovered new exit (range 8) 1504 | -10/Materials | Entered Mines 1537 | -10/Mines | Discovered new exit (range 8) 1812 | -10/Mines | Deemed a non-threat by the Exiles lab entrance 1815 | -10/Mines | Discovered new exit (range 5) 1869 | -10/Mines | Core integrity fell below 50% 1990 | -10/Mines | Learned 4 Materials zone layouts 2025 | -10/Mines | Discovered new exit (range 6) 2145 | -10/Mines | Discovered new exit (range 9) 2605 | -10/Mines | Entered Exiles 2627 | -10/Exiles | Discovered new exit (range 15) 2666 | -10/Exiles | Met 8R-AWN 2690 | -10/Exiles | Met EX-HEX 2764 | -10/Exiles | Met EX-DEC 2802 | -10/Exiles | Visited The Gauntlet 2871 | -10/Exiles | Learned location of Zion (-6) 2913 | -10/Exiles | Met EX-BIN 3114 | -10/Exiles | Discovered new exit (range 10) 3128 | -10/Exiles | Entered Mines 3189 | -9/Mines | Discovered new exit (range 9) 3334 | -9/Mines | Learned location of 1 exit from Materials 3354 | -9/Mines | Met a Derelict shopkeep closing up shop 3452 | -9/Mines | Received a Mining Laser from a helpful Derelict 3776 | -9/Mines | Discovered new exit (range 3) 4044 | -9/Mines | Entered Materials 4044 | -8/Materials | Evolved 4 slots: Utility x3, Weapon x1 4045 | -8/Materials | Identified exit to Factory 4193 | -8/Materials | Repaired Lgt. Angular Momentum Engine 4253 | -8/Materials | Repaired Hvy. Laser 4286 | -8/Materials | Repaired Mni. Grenade Launcher 4368 | -8/Materials | Build established: Skirmisher 4676 | -8/Materials | Destroyed 9 combat bots 4972 | -8/Materials | Build established: Scavenger-Tank 5400 | -8/Materials | Build established: Tank 5696 | -8/Materials | Repaired Hrd. Light Armor Plating 5730 | -8/Materials | Repaired Arm. Wheel 5768 | -8/Materials | Discovered exit to Factory (range 16) 6086 | -8/Materials | Identified exit to Garrison 6187 | -8/Materials | Entered Garrison 6215 | -8/Garrison | Installed Relay Interface Framework 6255 | -8/Garrison | Triggered checkpoint 6292 | -8/Garrison | Garrison Relay disabled 6423 | -8/Garrison | Triggered checkpoint 6450 | -8/Garrison | Discovered new exit (range 3) 6531 | -8/Garrison | Triggered checkpoint 6563 | -8/Garrison | Triggered checkpoint 6595 | -8/Garrison | Triggered checkpoint 6811 | -8/Garrison | Discovered exit to Factory (range 13) 6829 | -8/Garrison | Build established: Scavenger-Tank 6881 | -8/Garrison | Triggered checkpoint 6936 | -8/Garrison | Garrison Relay disabled 7128 | -8/Garrison | Garrison Relay disabled 7174 | -8/Garrison | Discovered exit to Factory (range 9) 7381 | -8/Garrison | Garrison Relay disabled 7408 | -8/Garrison | Discovered exit to Factory (range 8) 7516 | -8/Garrison | Phase Generator disabled 7796 | -8/Garrison | Entered Materials 7937 | -8/Materials | Central database locked down 8189 | -8/Materials | Build established: Skirmisher 8230 | -8/Materials | Discovered exit to Factory (range 11) 8285 | -8/Materials | Repaired Gauss Rifle 9396 | -8/Materials | First assault squad dispatched 9411 | -8/Materials | Identified exit to Garrison 9411 | -8/Materials | Entered Garrison 9411 | -8/Garrison | Accompanied by 1 ally 9589 | -8/Garrison | Triggered checkpoint 9631 | -8/Garrison | Garrison Relay disabled 9690 | -8/Garrison | Expanded RIF knowledge: Signal Jamming 9695 | -8/Garrison | Build established: Tank 9843 | -8/Garrison | Triggered checkpoint 10037 | -8/Garrison | Triggered checkpoint 10056 | -8/Garrison | Discovered exit to Factory (range 13) 10156 | -8/Garrison | Triggered checkpoint 10241 | -8/Garrison | Triggered checkpoint 10292 | -8/Garrison | Garrison Relay disabled 10407 | -8/Garrison | Discovered exit to Factory (range 8) 10521 | -8/Garrison | Triggered checkpoint 10607 | -8/Garrison | Expanded RIF knowledge: Program Shield 10668 | -8/Garrison | Core integrity fell below 50% 10791 | -8/Garrison | Entered Factory 10791 | -7/Factory | Evolved 2 slots: Propulsion x2 10870 | -7/Factory | Repaired Adv. Treads+ 10916 | -7/Factory | Repaired Remote Datajack 10963 | -7/Factory | Repaired Adv. Treads+? 11184 | -7/Factory | Repaired Gauss Rifle 11231 | -7/Factory | Build established: Bothacker-Skirmisher 11456 | -7/Factory | System corruption reached 10% 11824 | -7/Factory | Identified exit to Garrison 11824 | -7/Factory | Entered Garrison 11824 | -7/Garrison | Accompanied by 2 allies 11868 | -7/Garrison | Triggered checkpoint 11900 | -7/Garrison | Garrison Relay disabled 11958 | -7/Garrison | Triggered checkpoint 12096 | -7/Garrison | Build established: Bothacker-Tank 12105 | -7/Garrison | Garrison Relay disabled 12110 | -7/Garrison | Triggered checkpoint 12190 | -7/Garrison | Discovered new exit (range 14) 12263 | -7/Garrison | Phase Generator disabled 12368 | -7/Garrison | Triggered checkpoint 12455 | -7/Garrison | Discovered new exit (range 7) 12494 | -7/Garrison | Triggered checkpoint 12542 | -7/Garrison | Garrison Relay disabled 12576 | -7/Garrison | Expanded RIF knowledge: Patrol Navigation 12658 | -7/Garrison | Triggered checkpoint 12693 | -7/Garrison | Triggered checkpoint 12716 | -7/Garrison | Garrison Relay disabled 12746 | -7/Garrison | Discovered new exit (range 15) 12872 | -7/Garrison | System corruption reached 30% 12879 | -7/Garrison | Entered Factory 12879 | -6/Factory | Accompanied by 3 allies 12879 | -6/Factory | Evolved 2 slots: Utility x2 12881 | -6/Factory | Discovered new exit (range 9) 13074 | -6/Factory | Build established: Bothacker-Skirmisher 13121 | -6/Factory | Fabricated Lyr. Light Armor Plating (x2) 13229 | -6/Factory | First assault squad dispatched 13242 | -6/Factory | Discovered new exit (range 6) 13536 | -6/Factory | Central database locked down 13567 | -6/Factory | Identified exit to Garrison 13591 | -6/Factory | Entered Garrison 13618 | -6/Garrison | Expanded RIF knowledge: Zone Cloak 13629 | -6/Garrison | Triggered checkpoint 13650 | -6/Garrison | Garrison Relay disabled 13687 | -6/Garrison | Triggered checkpoint 13751 | -6/Garrison | Discovered new exit (range 5) 13855 | -6/Garrison | Triggered checkpoint 13863 | -6/Garrison | Triggered checkpoint 13927 | -6/Garrison | Build established: Bothacker-Tank 13985 | -6/Garrison | Discovered new exit (range 15) 14059 | -6/Garrison | Triggered checkpoint 14161 | -6/Garrison | Garrison Relay disabled 14267 | -6/Garrison | Triggered checkpoint 14268 | -6/Garrison | Triggered checkpoint 14601 | -6/Garrison | Discovered new exit (range 10) 14641 | -6/Garrison | Triggered checkpoint 14698 | -6/Garrison | Garrison Relay disabled 14857 | -6/Garrison | Triggered checkpoint 14898 | -6/Garrison | Lost 3 allies 14924 | -6/Garrison | Triggered checkpoint 14967 | -6/Garrison | Discovered new exit (range 15) 15172 | -6/Garrison | Build established: Botlord-Tank 15352 | -6/Garrison | Entered Factory 15527 | -6/Factory | Discovered new exit (range 14) 15726 | -6/Factory | Repaired Cld. Pulse Rifle 15762 | -6/Factory | Discovered new exit (range 12) 16020 | -6/Factory | Discovered new exit (range 12) 16180 | -6/Factory | Garrison activated, responded to threat 16362 | -6/Factory | Build established: Scientist-Skirmisher 16381 | -6/Factory | Identified exit to Garrison 16403 | -6/Factory | Entered Garrison 16403 | -6/Garrison | Accompanied by 6 allies 16460 | -6/Garrison | Phase Generator disabled 16583 | -6/Garrison | Triggered checkpoint 16618 | -6/Garrison | Garrison Relay disabled 17011 | -6/Garrison | Triggered checkpoint 17021 | -6/Garrison | Triggered checkpoint 17028 | -6/Garrison | Triggered checkpoint 17041 | -6/Garrison | Triggered checkpoint 17141 | -6/Garrison | Discovered new exit (range 10) 17195 | -6/Garrison | Triggered checkpoint 17229 | -6/Garrison | Triggered checkpoint 17237 | -6/Garrison | Build established: Bothacker-Gunner 17270 | -6/Garrison | Lost 3 allies 17479 | -6/Garrison | Triggered checkpoint 17548 | -6/Garrison | Garrison Relay disabled 17583 | -6/Garrison | Discovered new exit (range 13) 17735 | -6/Garrison | Discovered new exit (range 18) 17860 | -6/Garrison | Discovered new exit (range 20) 17951 | -6/Garrison | Triggered checkpoint 18028 | -6/Garrison | Expanded RIF knowledge: Command Fork 18050 | -6/Garrison | Garrison Relay disabled 18101 | -6/Garrison | Triggered checkpoint 18127 | -6/Garrison | Garrison Relay disabled 18210 | -6/Garrison | Entered Factory 18210 | -5/Factory | Accompanied by 8 allies 18210 | -5/Factory | Evolved 2 slots: Utility x2 18326 | -5/Factory | Sucked down chute 18326 | -5/Factory | Entered Waste 18335 | -5/Waste | Spotted C-40 Crusher 18382 | -5/Waste | Spotted C-40 Crusher 18395 | -5/Waste | Spotted C-40 Crusher 18395 | -5/Waste | Spotted C-40 Crusher 18463 | -5/Waste | Allies destroyed C-40 Crusher 18478 | -5/Waste | Destroyed C-40 Crusher 18531 | -5/Waste | Build established: Botlord-Gunner 18541 | -5/Waste | 8 allies followed down the chute 18567 | -5/Waste | Spotted C-40 Crusher 18578 | -5/Waste | Allies destroyed C-40 Crusher 18585 | -5/Waste | Spotted C-40 Crusher 18617 | -5/Waste | Allies destroyed C-40 Crusher 18633 | -5/Waste | Destroyed C-40 Crusher 18650 | -5/Waste | Destroyed C-40 Crusher 18862 | -5/Waste | Discovered new exit (range 13) 18874 | -5/Waste | Warlord forces began an assault 19034 | -5/Waste | Entered Factory 19034 | -5/Factory | Accompanied by 22 allies 19167 | -5/Factory | Identified exit to Garrison 19198 | -5/Factory | Lost 5 allies 19218 | -5/Factory | Entered Garrison 19218 | -5/Garrison | Accompanied by 17 allies 19239 | -5/Garrison | Build established: Bothacker-Gunner 19269 | -5/Garrison | Phase Generator disabled 19413 | -5/Garrison | Lost 5 allies 19465 | -5/Garrison | Triggered checkpoint 19466 | -5/Garrison | P-70 Sage assimilated allied LW-LET(g) 19470 | -5/Garrison | Triggered checkpoint 19504 | -5/Garrison | Garrison Relay disabled 19557 | -5/Garrison | Triggered checkpoint 19570 | -5/Garrison | Triggered checkpoint 19620 | -5/Garrison | Lost 3 allies 19664 | -5/Garrison | Discovered new exit (range 11) 19741 | -5/Garrison | Build established: Bothacker-Tank 19744 | -5/Garrison | Triggered checkpoint 19834 | -5/Garrison | Garrison Relay disabled 19890 | -5/Garrison | Triggered checkpoint 19914 | -5/Garrison | Expanded RIF knowledge: Alert ID Control 19957 | -5/Garrison | Discovered new exit (range 8) 20027 | -5/Garrison | Garrison Relay disabled 20103 | -5/Garrison | Build established: Commander-Gunner 20204 | -5/Garrison | Triggered checkpoint 20280 | -5/Garrison | Garrison Relay disabled 20332 | -5/Garrison | Discovered new exit (range 11) 20336 | -5/Garrison | Triggered checkpoint 20390 | -5/Garrison | Lost 4 allies 20479 | -5/Garrison | Entered Factory 20479 | -4/Factory | Accompanied by 9 allies 20479 | -4/Factory | Evolved 2 slots: Utility x2 20525 | -4/Factory | Spotted B-86 Titan 20556 | -4/Factory | Destroyed B-86 Titan 20729 | -4/Factory | First assault squad dispatched 20835 | -4/Factory | Lost 4 parts (1p3u) 20835 | -4/Factory | Lost 3 allies 20943 | -4/Factory | Garrison activated, responded to threat 20964 | -4/Factory | P-70 Sage assimilated allied HN-G9P(m) 21008 | -4/Factory | Lost 4 allies 21088 | -4/Factory | Identified exit to Garrison 21129 | -4/Factory | Entered Garrison 21129 | -4/Garrison | Accompanied by 1 ally 21173 | -4/Garrison | Triggered checkpoint 21207 | -4/Garrison | Garrison Relay disabled 21359 | -4/Garrison | Spotted B-86 Titan 21361 | -4/Garrison | Triggered checkpoint 21404 | -4/Garrison | Lost 5 parts (1p2n1u1w) 21416 | -4/Garrison | Found embedded Infiltrators 21426 | -4/Garrison | Destroyed 16 combat bots 21474 | -4/Garrison | Build established: Botlord-Tank 21531 | -4/Garrison | Triggered checkpoint 21619 | -4/Garrison | Triggered checkpoint 21619 | -4/Garrison | Triggered checkpoint 21685 | -4/Garrison | Lost 4 allies 21785 | -4/Garrison | Expanded RIF knowledge: Watcher Feeds 21807 | -4/Garrison | Garrison Relay disabled 21841 | -4/Garrison | System corruption reached 10% 21876 | -4/Garrison | Expanded RIF knowledge: Autoassimilate 21932 | -4/Garrison | Discovered new exit (range 12) 21936 | -4/Garrison | Spotted B-90 Cyclops 21948 | -4/Garrison | Spotted B-90 Cyclops 21978 | -4/Garrison | Entered Factory 22419 | -4/Factory | Discovered new exit (range 5) 22424 | -4/Factory | Identified exit to Research 22431 | -4/Factory | Entered Research 22431 | -3/Research | Accompanied by 2 allies 22431 | -3/Research | Evolved 2 slots: Utility x1, Weapon x1 22984 | -3/Research | Garrison activated, responded to threat 23020 | -3/Research | Lost 3 parts (2n1u) 23033 | -3/Research | Released all parts (11) 23064 | -3/Research | Core integrity fell below 50% 23067 | -3/Research | Lost 4 parts (1u3w) 23089 | -3/Research | Core integrity fell below 20% 23092 | -3/Research | Destroyed by S-43 Plague with Heavy Machine Gun Last Messages --------------- 23044_ Field strength at 18. 23045_ Stasis field depleted. 23057_ Slug penetrates Wall. 23060_ Connecting with Repair Station... 23069_ ALERT: Security rotation in progress. 23071_ P-80 Master resets S-43 Plague, system corruption cleaned. 23074_ Connecting with Terminal... 23077_ W-44 Eye sends out distress signal. 23078_ System corrupted: Component data lost. 23082_ Connecting with Terminal... Feedback: System corruption (+1%). 23082_ ALERT: Suspicious activity at Terminal R007. Dispatching Investigation squad. 23086_ Terminal disabled. 23087_ Slammed into P-80 Master. 23088_ Slug penetrates Wall. 23088_ Slammed into P-80 Master. 23090_ Slug penetrates Wall. [Achievement: 30k Club] Map ----- +----------------------------------------------------+ | ######/########+##??# #???????????????????????? | | #????????????# #???????????????????????? | | #????????????# #???????????????????????? | | """ #????????????# #???????????????????????? | | """ #????????????# #???????????????????????? | | """ #????????????# #???????????????????????? | | #????????????# #???????????????????????? | | #????????????# #???????????????????????? | | #????????????# #???????????????????????? | | #????????????# #???????????????????????? | | #????????????# #???????????????????????? | | #????????????# #???????????????????????? | | ########????????????# /???????????????????????? | | #??????????????# #???????????????????????? | | #??????????????# #???????????????????????? | | """ #??????????????# #???????????????????????? | | """ #??????????????# #??####?????????????????? | | """ #??????????? ?# #??#""#?????????????????? | | ####+######+#### ####T"#########?????????? | | ## #?????????? | | ## #?????????? | | ##/#### #?????????? | | + #?????????? | | # ######/################# #?????????? | | "" # #??? ???#; # #?????????? | | """ # #?# ??#@ = # #?????????? | | "R / #?#""" #?# p + +?????????? | | """ # #?#""" ### s""p # #?????????? | | "" # #?#""" / / T ; #?????????? | | # #?# ### s""" ; H #?????????? | | ! # #?# #?# s s ## ##?????????? | | ####### #?# = #?# s #? #??????????? | | ??????# #???? #?###########? #??????????? | | ??????# #???##+#####????????????? #??????????? | | ??????# #???????????????????????? #??????????? | | ??????# #???????????????????????? ??????????? | | ??????+ #???????????????????????? ??????????? | | ??????# #????????????????????????! ??????????? | | ??????# #????????????????????????? ??????????? | | ??????# #????????????????????????? ?????????? | | ??????+ #????????????????????????? ???????????? | | ??????? #?????????????????????????????????????? | | ??????? #?????????????????????????????????????? | | ??????? ???????????????????????????????????????? | | ?????????????????????????????????????????????????? | | ?????????????????????????????????????????????????? | | ?????????????????????????????????????????????????? | | ?????????????????????????????????????????????????? | | ?????????????????????????????????????????????????? | | ?????????????????????????????????????????????????? | +----------------------------------------------------+ Best States ------------- Heat Dissipation 100 Energy Generation 25 Energy Capacity 340 Matter Stores 300 Matter Capacity 300 Sight Range 22 Robot Scan Range 16 Terrain Scan Range 24 Terrain Scan Density 210 Base Temperature (-) 150 Armor Coverage 975 Utility Shielding 66 Weapon Cycling 25 Evasion (%) 50 Targeting Accuracy 8 Core Analysis 6 Recoil Reduction 4 Kinecelleration 30 Offensive Hacking 20 Relay Coupler Types 4 Relay Coupler Value 81 Item Schematics ----------------- Arm. Huge Wheel | -8/Materials | Scanalyzed Adv. Targeting Computer | -8/Materials | Scanalyzed Hrd. Medium Armor Plating | -8/Materials | Scanalyzed Lyr. Light Armor Plating | -7/Factory | Scanalyzed Enh. Autogun | -7/Factory | Scanalyzed Remote Datajack | -6/Factory | Scanalyzed Robot Schematics ------------------ None Fabricated ------------ Lyr. Light Armor Plating | x2 | -6/Factory Repaired ---------- Lgt. Treads | 12% | -10/Materials Beam Cannon | 58% | -10/Materials Assault Rifle | 32% | -10/Materials Lgt. Angular Momentum Engine | 33% | -8/Materials Hvy. Laser | 57% | -8/Materials Mni. Grenade Launcher | 70% | -8/Materials Hrd. Light Armor Plating | 73% | -8/Materials Arm. Wheel | 54% | -8/Materials Gauss Rifle | 30% | -8/Materials Adv. Treads | 15% | -7/Factory Remote Datajack | 30% | -7/Factory Adv. Treads | 30% | -7/Factory Gauss Rifle | 1% | -7/Factory Cld. Pulse Rifle | 37% | -6/Factory Studied --------- Adv. Treads | -8/Materials | Hacked Arm. Huge Wheel | -7/Factory | Hacked Imp. Medium Treads | -6/Factory | Hacked Gauss Rifle | -6/Factory | Hacked Remote Datajack | -6/Factory | Hacked Hvy. Machine Gun | -6/Factory | Hacked Alien Tech Used ----------------- None Achievements -------------- 30k Club A New Friend Assimilation Complete Beloved Factory Defaults Generalissimo Hack The Planet Hackathon Hackerman Infiltrator Oh No You Don't! Oppo Buddy Overkill Pwned Taming Of The Crushers That Tickles Versatile Watcher Gambling Challenges ------------ None Game ------ Seed TeleporterWeldingMask Manual? 0 Play Time 08:31:55 Cumulative 32.4 hours Start 2025.11.16 @ 00:52:57 End 2025.11.17 @ 00:48:35 Sessions 3 Manual Loads 0 Difficulty Rogue Special Mode None Game No. 16 Rogue 16 Adventurer 0 Explorer 0 Win Type - Total 1 Types 1/0/0/0/0/0/0/0/0/0 Lore% 21 Gallery% 25 Achievement% 33 Wizard Run 0 Options --------- Layout 1 ASCII 0 Keyboard 0 Movement Mouse Keybinds 0 Fullscreen 1 Font 24/Smallcaps Map View 50x35 Zoom Use 0% Tactical HUD 1 Map Filters NONE Filters NONE Steam 1 RUN: d36ef08d-a83e-4654-b498-818116ccde5c